bitfinex-derivatives/quotes_BTCF0:USTF0_20250827
["timestamp","ask_amount","ask_price","bid_price","bid_amount"]
[1756322829504,0.13871,112080.0,112070.0,1.80077196]
[1756322830606,0.13871,112080.0,112070.0,1.79519196]
[1756322831111,0.13871,112080.0,112070.0,1.80057196]
[1756322831309,0.13871,112080.0,112070.0,1.79499196]
[1756322831812,0.13871,112080.0,112070.0,1.80057196]
[1756322833608,0.13871,112080.0,112070.0,0.93369196]
[1756322833811,0.13871,112080.0,112070.0,1.80013196]
[1756322836203,0.13871,112080.0,112070.0,0.93369196]
[1756322836506,0.66654396,112080.0,112070.0,1.0003468]
[1756322836703,0.2279188,112080.0,112070.0,1.0003468]
[1756322836903,0.2279188,112080.0,112070.0,0.1342668]
[1756322837210,0.2279188,112080.0,112070.0,1.0003468]
[1756322837406,0.13871,112080.0,112070.0,1.0003468]
[1756322838511,0.13871,112080.0,112070.0,0.1342668]
[1756322838713,0.13871,112080.0,112070.0,1.0002668]
[1756322839111,0.13871,112080.0,112070.0,1.3610668]
[1756322839513,0.13871,112080.0,112070.0,1.79969196]
[1756322840713,0.13871,112080.0,112070.0,0.4950668]
[1756322840913,0.13881,112080.0,112070.0,1.3552468]
[1756322841107,0.57743516,112080.0,112070.0,1.3608268]
[1756322841306,0.57743516,112080.0,112070.0,0.9997868]
[1756322842714,0.57743516,112080.0,112070.0,0.1342668]
[1756322842919,0.57743516,112080.0,112070.0,0.9997468]
[1756322843512,1.02744396,112080.0,112070.0,0.90475]
[1756322843710,1.27744396,112080.0,112070.0,0.8692]
[1756322844115,1.27744396,112080.0,112070.0,0.0932168]
[1756322844316,1.27744396,112080.0,112070.0,0.9584168]
[1756322844517,1.27744396,112080.0,112070.0,0.9745768]
[1756322845016,1.27744396,112080.0,112070.0,0.9735768]
[1756322845317,1.27744396,112080.0,112070.0,0.9714168]
[1756322845715,1.27744396,112080.0,112070.0,0.9704168]
[1756322846614,1.27744396,112080.0,112070.0,0.1053768]
[1756322846917,1.27744396,112080.0,112070.0,0.9542568]
[1756322847215,1.7279268,112070.0,112060.0,0.86508]
[1756322847419,2.52745196,112070.0,112060.0,0.89142]
[1756322847619,2.52745196,112070.0,112060.0,0.9806448]
[1756322848318,2.52745196,112070.0,112060.0,0.9816448]
[1756322848519,2.52745196,112070.0,112060.0,0.9826448]
[1756322849020,2.52745196,112070.0,112060.0,0.9915748]
[1756322849920,2.52745196,112070.0,112060.0,0.1266948]
[1756322850222,2.52745196,112070.0,112060.0,0.9557448]
[1756322850421,2.52745196,112070.0,112060.0,0.9718848]
[1756322850618,2.0888268,112070.0,112060.0,0.9911948]
[1756322850818,2.52745196,112070.0,112060.0,0.9911948]
[1756322851719,2.52745196,112070.0,112060.0,0.9911148]
[1756322851920,2.52745196,112070.0,112060.0,0.9820648]
[1756322852320,2.52745196,112070.0,112060.0,0.9716848]
[1756322852515,2.52745196,112070.0,112060.0,0.9909948]
[1756322852716,2.52745196,112070.0,112060.0,0.86632]
[1756322853116,2.77745196,112070.0,112060.0,0.002]
[1756322853318,3.08745196,112070.0,112060.0,0.002]
[1756322853522,1.29745196,112070.0,112060.0,0.002]
[1756322853719,1.60745196,112070.0,112060.0,0.002]
[1756322853921,2.47161196,112070.0,112060.0,0.002]
[1756322854120,2.14161196,112070.0,112060.0,0.002]
[1756322854314,0.2340948,112060.0,112050.0,0.88405301]
[1756322854615,0.1313628,112050.0,112040.0,0.0002]
[1756322854820,1.03362796,112050.0,112040.0,0.86408]
[1756322855119,0.1760307,112040.0,112030.0,1.23683546]
[1756322855321,0.97555586,112040.0,112030.0,1.04322387]
[1756322855722,0.98434427,112040.0,112030.0,1.04322387]
[1756322856430,0.98434427,112040.0,112030.0,1.04522387]
[1756322857433,0.98434427,112040.0,112030.0,1.04722387]
[1756322859429,0.62354427,112040.0,112030.0,1.04722387]
[1756322860538,0.09567841,112040.0,112030.0,1.49142903]
[1756322860730,0.09567841,112040.0,112030.0,1.05280387]
[1756322861226,0.53430357,112040.0,112030.0,1.05280387]
[1756322861430,0.62354437,112040.0,112030.0,1.05280387]
[1756322861626,0.18491921,112040.0,112030.0,1.05280387]
[1756322861824,0.09567841,112040.0,112030.0,1.05280387]
[1756322862425,0.15375841,112040.0,112030.0,0.19773387]
[1756322862638,0.24299921,112040.0,112030.0,1.05551387]
[1756322863033,0.24299921,112040.0,112030.0,1.06109387]
[1756322863635,0.24299921,112040.0,112030.0,0.19773387]
[1756322863935,0.68162437,112040.0,112030.0,0.19773387]
[1756322864136,0.68162437,112040.0,112030.0,1.06089387]
[1756322864437,0.68162437,112040.0,112030.0,0.19215387]
[1756322864730,1.04242437,112040.0,112030.0,1.05523387]
[1756322865035,1.04242437,112040.0,112030.0,0.96598997]
[1756322865239,1.04242437,112040.0,112030.0,0.95701997]
[1756322865436,1.04242437,112040.0,112030.0,0.92490997]
[1756322865629,1.29242437,112040.0,112030.0,0.88677997]
[1756322866535,1.29242437,112040.0,112030.0,0.97602857]
[1756322866728,1.29242437,112040.0,112030.0,1.04622857]
[1756322867132,1.04242437,112040.0,112030.0,1.04622857]
[1756322867629,1.04242437,112040.0,112030.0,1.05180857]
[1756322867833,0.48073841,112040.0,112030.0,1.49043373]
[1756322868039,0.60379911,112040.0,112030.0,1.49043373]
[1756322869043,0.60379911,112040.0,112030.0,1.05180857]
[1756322869336,0.60379911,112040.0,112030.0,0.19773857]
[1756322869535,0.60379911,112040.0,112030.0,1.0406786]
[1756322870037,1.04242427,112040.0,112030.0,1.0406786]
[1756322870541,0.95318357,112040.0,112030.0,1.0406786]
[1756322871238,1.04242427,112040.0,112030.0,1.0406786]
[1756322871439,0.02991,112040.0,112030.0,1.47930376]
[1756322871739,0.02991,112040.0,112030.0,1.72930376]
[1756322872531,0.02991,112040.0,112030.0,2.09010376]
[1756322873139,0.02991,112040.0,112030.0,1.84010376]
[1756322874836,0.02991,112040.0,112030.0,1.83942376]
[1756322876144,0.04586,112040.0,112030.0,0.97738376]
[1756322876440,0.14497,112040.0,112030.0,1.3952186]
[1756322876641,0.58359516,112040.0,112030.0,1.3952186]
[1756322877232,0.58359516,112040.0,112030.0,1.4006386]
[1756322878144,0.14497,112040.0,112030.0,1.4006386]
[1756322878337,0.14497,112040.0,112030.0,1.4004386]
[1756322878541,0.02991,112040.0,112030.0,1.83906376]
[1756322879335,0.02991,112040.0,112030.0,0.97738376]
[1756322879535,0.06875,112040.0,112030.0,1.83894376]
[1756322880749,0.04586,112040.0,112030.0,1.83894376]
[1756322882644,0.08797,112040.0,112030.0,1.83878376]
[1756322882850,0.08797,112040.0,112030.0,0.97738376]
[1756322883153,1.03393586,112040.0,112030.0,1.0335386]
[1756322883644,1.19469516,112040.0,112030.0,1.0335386]
[1756322883839,0.06875,112040.0,112030.0,1.47774376]
[1756322884043,0.02991,112040.0,112030.0,1.47774376]
[1756322884653,0.02991,112040.0,112030.0,1.0391186]
[1756322884846,0.02991,112040.0,112030.0,1.47774376]
[1756322885547,0.02991,112040.0,112030.0,1.0391186]
[1756322885753,0.14514,112040.0,112030.0,1.0388386]
[1756322885953,0.14514,112040.0,112030.0,1.47746376]
[1756322886352,0.11135,112040.0,112030.0,0.61658376]
[1756322886558,0.94456516,112040.0,112030.0,1.0332586]
[1756322886855,0.94456516,112040.0,112030.0,1.0331386]
[1756322887552,0.58376516,112040.0,112030.0,1.0331386]
[1756322887755,0.14514,112040.0,112030.0,1.0331386]
[1756322888348,0.14514,112040.0,112030.0,1.0387186]
[1756322888548,0.58376516,112040.0,112030.0,1.0387186]
[1756322889449,0.14514,112040.0,112030.0,1.0387186]
[1756322889654,0.02991,112040.0,112030.0,1.47734376]
[1756322889849,0.0001,112040.0,112030.0,1.83814376]
[1756322890155,0.0001,112040.0,112030.0,1.84694805]
[1756322890347,0.02839,112050.0,112040.0,0.1197407]
[1756322890549,0.39469,112070.0,112060.0,0.0892247]
[1756322890751,0.62020724,112070.0,112060.0,1.0332547]
[1756322890951,0.50442,112070.0,112060.0,1.0332547]
[1756322891152,0.47063,112070.0,112060.0,1.47187986]
[1756322891350,0.14362,112070.0,112060.0,1.47187986]
[1756322891552,0.12011,112070.0,112060.0,1.47187986]
[1756322891754,0.14362,112070.0,112060.0,1.47187986]
[1756322892253,0.2328368,112070.0,112060.0,0.1728547]
[1756322892457,0.6806228,112070.0,112060.0,1.0331347]
[1756322892657,1.0414228,112070.0,112060.0,1.0274347]
[1756322892958,0.952206,112070.0,112060.0,1.0274347]
[1756322893450,1.0414228,112070.0,112060.0,1.0284347]
[1756322893648,1.0434228,112070.0,112060.0,1.0284347]
[1756322894248,1.0414228,112070.0,112060.0,1.0284347]
[1756322894454,1.0414228,112070.0,112060.0,0.1738547]
[1756322894654,1.0414228,112070.0,112060.0,0.1682747]
[1756322894959,1.0414228,112070.0,112060.0,1.0281547]
[1756322896357,0.952206,112070.0,112060.0,1.0281547]
[1756322896655,0.591406,112070.0,112060.0,1.0281547]
[1756322896856,0.6806228,112070.0,112060.0,1.0279147]
[1756322897559,0.591406,112070.0,112060.0,1.0279147]
[1756322897747,0.591406,112070.0,112060.0,1.0334947]
[1756322898156,0.02839,112070.0,112060.0,1.47211986]
[1756322898748,0.02839,112070.0,112060.0,1.83271986]
[1756322899957,0.02839,112070.0,112060.0,0.97327986]
[1756322900161,0.02839,112070.0,112060.0,1.83267986]
[1756322901762,0.1005,112070.0,112060.0,1.83235986]
[1756322902061,0.12401,112070.0,112060.0,1.83235986]
[1756322902261,0.04382,112070.0,112060.0,1.83235986]
[1756322903255,0.14362,112070.0,112060.0,1.3937347]
[1756322903459,0.2328368,112070.0,112060.0,1.83235986]
[1756322903658,0.2328368,112070.0,112060.0,1.3937347]
[1756322904160,0.2328368,112070.0,112060.0,0.97327986]
[1756322904360,0.2328368,112070.0,112060.0,1.3934547]
[1756322904559,0.2328368,112070.0,112060.0,1.83207986]
[1756322904758,0.2328368,112070.0,112060.0,1.3934547]
[1756322905060,0.2328368,112070.0,112060.0,0.5346547]
[1756322905261,0.2328368,112070.0,112060.0,1.3934547]
[1756322905860,0.2328368,112070.0,112060.0,1.0325747]
[1756322906060,0.2328368,112070.0,112060.0,1.0269547]
[1756322906560,0.2328368,112070.0,112060.0,1.0325347]
[1756322906762,0.2328368,112070.0,112060.0,0.1738547]
[1756322906959,0.2328368,112070.0,112060.0,1.0324947]
[1756322907659,0.2328368,112070.0,112060.0,1.0324147]
[1756322907859,0.2328368,112070.0,112060.0,1.0323347]
[1756322908557,0.1990468,112070.0,112060.0,1.0267147]
[1756322908763,0.2312468,112070.0,112060.0,1.0267147]
[1756322909465,0.66987196,112070.0,112060.0,1.0322947]
[1756322909765,0.66997196,112070.0,112060.0,1.0322947]
[1756322909959,0.66997196,112070.0,112060.0,0.1682747]
[1756322910259,1.28077196,112070.0,112060.0,0.1682747]
[1756322910460,1.28077196,112070.0,112060.0,0.001]
[1756322910761,0.0892247,112060.0,112050.0,0.85836]
[1756322911060,0.1739527,112050.0,112040.0,1.71647975]
[1756322911260,1.02883786,112050.0,112040.0,0.87763975]
[1756322911566,1.02883786,112050.0,112040.0,0.87759975]
[1756322911762,0.5902127,112050.0,112040.0,1.04718045]
[1756322911972,1.02883786,112050.0,112040.0,0.18910045]
[1756322912268,1.02883786,112050.0,112040.0,1.04714045]
[1756322912453,1.02883786,112050.0,112040.0,0.94892975]
[1756322912658,1.64883786,112050.0,112040.0,0.87747975]
[1756322912862,1.27883786,112050.0,112040.0,0.87747975]
[1756322913061,1.27883786,112050.0,112030.0,0.0002]
[1756322913062,0.0892407,112040.0,112030.0,0.0002]
[1756322913268,0.2293286,112030.0,112020.0,0.85812]
[1756322913463,1.35885376,112030.0,112020.0,0.85792]
[1756322914167,1.35785376,112030.0,112020.0,0.85792]
[1756322914670,1.35785376,112030.0,112020.0,0.86092]
[1756322914857,1.30785376,112030.0,112020.0,0.003]
[1756322915057,1.04785376,112030.0,112020.0,0.8608]
[1756322915267,1.38785376,112030.0,112020.0,0.003]
[1756322915462,1.63785376,112030.0,112020.0,0.003]
[1756322915861,1.63785376,112030.0,112020.0,0.005]
[1756322916768,0.2293366,112020.0,112010.0,0.0202574]
[1756322917069,1.04886176,112020.0,112010.0,0.8777774]
[1756322917259,1.02886176,112020.0,112010.0,0.0200574]
[1756322917462,1.04886176,112020.0,112010.0,0.0200574]
[1756322918172,1.04886176,112020.0,112010.0,0.0240574]
[1756322918374,1.02886176,112020.0,112010.0,0.0240574]
[1756322918972,1.02886176,112020.0,112010.0,0.0260574]
[1756322919162,0.5902366,112020.0,112010.0,0.173032]
[1756322919364,0.5902366,112020.0,112010.0,0.1113974]
[1756322919566,0.1074505,111990.0,111980.0,0.02567]
[1756322919767,1.02878566,111990.0,111980.0,0.0346]
[1756322919966,1.02878566,111990.0,111980.0,0.04018]
[1756322920170,0.52225516,111990.0,111980.0,0.1294685]
[1756322920370,0.91525516,111990.0,111980.0,0.1294685]
[1756322920668,0.14008,111990.0,111980.0,0.3794685]
[1756322920876,0.02827,111990.0,111980.0,0.3794685]
[1756322921181,0.0438,111990.0,111980.0,0.3794685]
[1756322921474,0.5156356,112000.0,111990.0,0.1294605]
[1756322921674,0.5901556,112000.0,111990.0,0.9868605]
[1756322922181,0.4938756,112000.0,111990.0,1.2368605]
[1756322922479,0.5901556,112000.0,111990.0,1.14196]
[1756322922774,1.02978076,112000.0,111990.0,1.14192]
[1756322923272,1.03178076,112000.0,111990.0,1.14192]
[1756322923877,1.03178076,112000.0,111990.0,1.2367005]
[1756322925276,0.03127,112000.0,111990.0,1.67532566]
[1756322925671,0.1527425,112000.0,111990.0,1.2367005]
[1756322925871,0.1527425,112000.0,111990.0,1.67532566]
[1756322926276,0.1527425,112000.0,111990.0,1.2367005]
[1756322927571,0.1205425,112000.0,111990.0,1.67532566]
[1756322929075,0.03127,112000.0,111990.0,1.67532566]
[1756322929274,0.03127,112000.0,111990.0,1.67496566]
[1756322929669,0.1205425,112000.0,111990.0,0.81808566]
[1756322929881,0.1205425,112000.0,111990.0,1.67496566]
[1756322930180,0.1205425,112000.0,111990.0,1.67488566]
[1756322931269,0.03127,112000.0,111990.0,1.67488566]
[1756322931673,0.003,112000.0,111990.0,2.03568566]
[1756322932376,0.003,112000.0,111990.0,2.03556566]
[1756322933177,0.003,112000.0,111990.0,1.78556566]
[1756322934176,0.03127,112000.0,111990.0,1.78552566]
[1756322934380,0.03127,112000.0,111990.0,1.3467405]
[1756322934573,0.03127,112000.0,111990.0,1.78536566]
[1756322935683,0.003,112000.0,111990.0,0.92888566]
[1756322935871,0.003,112000.0,111990.0,1.78532566]
[1756322936076,0.003,112000.0,111990.0,0.92888566]
[1756322936277,0.003,112000.0,111990.0,1.78516566]
[1756322936771,0.003,112000.0,111990.0,0.92888566]
[1756322936973,0.03127,112000.0,111990.0,1.78512566]
[1756322938486,0.03127,112000.0,111990.0,0.92888566]
[1756322938671,0.03137,112000.0,111990.0,1.78508566]
[1756322939584,0.03137,112000.0,111990.0,1.78496566]
[1756322940081,0.0031,112000.0,111990.0,2.03496566]
[1756322940281,0.0001,112010.0,112000.0,0.1098526]
[1756322940487,0.04638,112020.0,112010.0,0.1227046]
[1756322940678,0.07278774,112020.0,112010.0,1.77804976]
[1756322940985,0.07278774,112020.0,112010.0,1.77800976]
[1756322941778,0.07478774,112020.0,112010.0,0.92212976]
[1756322941974,0.07478774,112020.0,112010.0,1.77788976]
[1756322942580,0.07478774,112020.0,112010.0,0.92212976]
[1756322942782,0.07478774,112020.0,112010.0,1.77784976]
[1756322943285,0.17211774,112020.0,112010.0,1.77780976]
[1756322943590,0.17211774,112020.0,112010.0,1.77776976]
[1756322943783,0.14938774,112020.0,112010.0,1.77776976]
[1756322944086,0.11574774,112020.0,112010.0,1.77776976]
[1756322944384,0.09684774,112020.0,112010.0,1.77768976]
[1756322944886,0.17211774,112020.0,112010.0,0.4835046]
[1756322945082,0.26137434,112020.0,112010.0,1.3334046]
[1756322945281,0.26137434,112020.0,112010.0,1.77202976]
[1756322945584,0.26137434,112020.0,112010.0,1.77198976]
[1756322946887,0.26137434,112020.0,112010.0,1.77756976]
[1756322947290,0.05821774,112020.0,112010.0,1.77756976]
[1756322947496,0.05821774,112020.0,112010.0,1.3389446]
[1756322947789,0.05821774,112020.0,112010.0,1.77756976]
[1756322949189,0.09185774,112020.0,112010.0,1.77756976]
[1756322949386,0.05821774,112020.0,112010.0,1.77756976]
[1756322949987,0.11458774,112020.0,112010.0,1.77756976]
[1756322950299,0.6999995,112020.0,112010.0,0.9722046]
[1756322950585,0.6999995,112020.0,112010.0,0.9721246]
[1756322950980,0.26137434,112020.0,112010.0,0.9777046]
[1756322951185,0.26137434,112020.0,112010.0,0.9720446]
[1756322951394,0.26137434,112020.0,112010.0,0.9776246]
[1756322951690,0.26137434,112020.0,112010.0,0.1171246]
[1756322951890,0.26137434,112020.0,112010.0,0.9720446]
[1756322952291,0.26137434,112020.0,112010.0,0.9776246]
[1756322952492,0.26137434,112020.0,112010.0,0.55574976]
[1756322952687,0.26137434,112020.0,112010.0,1.41054976]
[1756322952989,0.26137434,112020.0,112010.0,1.41612976]
[1756322953190,0.14938774,112020.0,112010.0,1.41612976]
[1756322953384,0.17211774,112020.0,112010.0,1.77692976]
[1756322953594,0.26137434,112020.0,112010.0,1.77692976]
[1756322953986,0.26137434,112020.0,112010.0,1.41612976]
[1756322954488,0.26137434,112020.0,112010.0,1.77692976]
[1756322954889,0.26137434,112020.0,112010.0,1.41612976]
[1756322955292,0.17211774,112020.0,112010.0,1.41612976]
[1756322955485,0.17211774,112020.0,112010.0,1.77692976]
[1756322955887,0.17211774,112020.0,112010.0,1.3383046]
[1756322956083,0.26137434,112020.0,112010.0,1.41588976]
[1756322957495,0.26137434,112020.0,112010.0,0.9772646]
[1756322957688,0.26137434,112020.0,112010.0,1.41588976]
[1756322957888,0.26137434,112020.0,112010.0,0.9714846]
[1756322958089,0.26137434,112020.0,112010.0,1.41010976]
[1756322958699,0.26137434,112020.0,112010.0,0.9714846]
[1756322958998,0.26137434,112020.0,112010.0,0.9770646]
[1756322959190,0.26147434,112020.0,112010.0,0.9770646]
[1756322959790,0.26147434,112020.0,112010.0,1.41568976]
[1756322959999,0.11584774,112020.0,112010.0,1.41568976]
[1756322960199,0.26147434,112020.0,112010.0,0.9770646]
[1756322960394,0.26147434,112020.0,112010.0,1.41568976]
[1756322961908,0.26147434,112020.0,112010.0,0.1227046]
[1756322962211,0.26147434,112020.0,112010.0,1.41532976]
[1756322962800,0.26147434,112020.0,112010.0,0.9767046]
[1756322963306,0.26147434,112020.0,112010.0,0.1227046]
[1756322963604,0.26147434,112020.0,112010.0,0.9765846]
[1756322964208,0.2349666,112020.0,112010.0,0.9765846]
[1756322964912,0.2349666,112020.0,112010.0,1.41520976]
[1756322965612,0.12298,112020.0,112010.0,1.41520976]
[1756322965809,0.07044,112020.0,112010.0,1.77600976]
[1756322966004,0.03181,112020.0,112010.0,1.3373846]
[1756322966203,0.03181,112020.0,112010.0,1.77600976]
[1756322966512,0.0021,112020.0,112010.0,1.77600976]
[1756322967312,0.03181,112020.0,112010.0,1.77600976]
[1756322970016,0.03181,112020.0,112010.0,1.3373846]
[1756322970313,0.03181,112020.0,112010.0,1.77600976]
[1756322970708,0.03181,112020.0,112010.0,0.4835046]
[1756322970913,0.10456,112020.0,112010.0,1.77536976]
[1756322971316,0.2176961,112020.0,112010.0,1.77536976]
[1756322971816,0.1938161,112020.0,112010.0,1.77536976]
[1756322972110,0.04838,112020.0,112010.0,1.77536976]
[1756322972306,0.08168,112020.0,112010.0,1.77536976]
[1756322972505,1.03602126,112020.0,112010.0,0.8811]
[1756322972707,1.03602126,112020.0,112010.0,0.88094]
[1756322973619,0.2365961,112020.0,112010.0,0.9757841]
[1756322973918,0.03181,112020.0,112010.0,1.77520926]
[1756322974110,0.06511,112020.0,112010.0,1.77520926]
[1756322974511,0.1543661,112020.0,112010.0,1.77520926]
[1756322975015,0.1927561,112020.0,112010.0,1.68582516]
[1756322975216,0.2166361,112020.0,112010.0,1.77508926]
[1756322975416,0.12738,112020.0,112010.0,1.77508926]
[1756322976315,0.14586,112020.0,112010.0,0.92212926]
[1756322976518,0.2351161,112020.0,112010.0,1.77492926]
[1756322977418,0.14586,112020.0,112010.0,1.77492926]
[1756322977617,0.2351161,112020.0,112010.0,1.77492926]
[1756322978116,0.14586,112020.0,112010.0,1.77492926]
[1756322979016,0.03181,112020.0,112010.0,1.77492926]
[1756322979321,0.0021,112020.0,112010.0,1.77492926]
[1756322979516,0.02886,112030.0,112010.0,2.02492926]
[1756322979718,0.40936469,112040.0,112030.0,0.0892481]
[1756322979914,0.02876,112040.0,112030.0,1.76917326]
[1756322980313,0.02886,112050.0,112040.0,0.1172202]
[1756322980513,0.37641,112060.0,112050.0,0.0892322]
[1756322980824,0.38956,112060.0,112050.0,1.42791517]
[1756322981012,0.38956,112060.0,112050.0,0.57543517]
[1756322981218,0.41399853,112060.0,112050.0,0.57543517]
[1756322981417,0.10937853,112060.0,112050.0,1.42783517]
[1756322981618,0.15173853,112060.0,112050.0,1.42783517]
[1756322982218,0.14881,112060.0,112050.0,1.42783517]
[1756322982416,0.14881,112060.0,112050.0,0.98921001]
[1756322982617,0.12493,112060.0,112050.0,1.42783517]
[1756322983018,0.12893,112060.0,112050.0,1.78863517]
[1756322983722,0.07715,112060.0,112050.0,1.78863517]
[1756322983922,0.05427,112060.0,112050.0,1.78863517]
[1756322985025,0.05427,112060.0,112050.0,1.78839517]
[1756322985726,0.15281,112060.0,112050.0,1.78827517]
[1756322986228,0.2420342,112060.0,112050.0,1.78827517]
[1756322986524,0.2420342,112060.0,112050.0,0.93623517]
[1756322986724,0.2420342,112060.0,112050.0,1.78823517]
[1756322988526,0.2420342,112060.0,112050.0,1.42743517]
[1756322988719,0.2420342,112060.0,112050.0,1.78823517]
[1756322989228,0.2420342,112060.0,112050.0,1.78795517]
[1756322989615,0.2420342,112060.0,112050.0,1.78791517]
[1756322990324,0.2420342,112060.0,112050.0,1.42711517]
[1756322991328,0.15281,112060.0,112050.0,1.42711517]
[1756322991627,0.15281,112060.0,112050.0,1.78787517]
[1756322993529,0.15281,112060.0,112050.0,1.42707517]
[1756322994826,0.2420342,112060.0,112050.0,0.57543517]
[1756322995031,0.2420342,112060.0,112050.0,1.42671517]
[1756322995233,0.2420342,112060.0,112050.0,0.57543517]
[1756322995434,0.2420342,112060.0,112050.0,1.42663517]
[1756322999739,0.2420342,112060.0,112050.0,0.57543517]
[1756322999932,0.2421342,112060.0,112050.0,1.42623517]
[1756323000128,0.2421342,112060.0,112050.0,0.13681001]
[1756323000438,1.41155936,112060.0,112050.0,0.88924781]
[1756323000738,1.66155936,112060.0,112050.0,0.01959781]
[1756323000938,1.67155936,112060.0,112050.0,0.87031781]
[1756323001132,1.29155936,112060.0,112050.0,0.89481781]
[1756323001326,0.8529342,112060.0,112050.0,0.89481781]
[1756323001529,1.29155936,112060.0,112050.0,0.89481781]
[1756323001729,0.5696342,112060.0,112050.0,0.98745001]
[1756323001930,0.1849543,112060.0,112050.0,1.42607517]
[1756323002136,0.0101,112060.0,112050.0,1.78687517]
[1756323002345,0.0101,112060.0,112050.0,2.03687517]
[1756323002633,0.02902,112070.0,112060.0,0.0902743]
[1756323002946,0.02892,112070.0,112060.0,0.4517343]
[1756323003237,0.02892,112070.0,112060.0,0.89035946]
[1756323003441,0.2345563,112070.0,112060.0,0.85223]
[1756323003931,0.2395563,112070.0,112060.0,0.85223]
[1756323004136,0.2455563,112070.0,112060.0,0.85223]
[1756323004544,0.2455563,112070.0,112060.0,0.85215]
[1756323004842,0.2544193,112070.0,112060.0,0.85215]
[1756323005228,0.2455563,112070.0,112060.0,0.9413743]
[1756323005842,0.2455563,112070.0,112060.0,1.29069516]
[1756323006440,0.2455563,112070.0,112060.0,1.37991936]
[1756323006751,0.2455563,112070.0,112060.0,0.0909342]
[1756323006943,0.2455563,112070.0,112060.0,0.9411742]
[1756323008136,0.25455882,112070.0,112060.0,0.9411742]
[1756323009533,0.2214963,112070.0,112060.0,1.3019742]
[1756323009938,0.03992,112070.0,112060.0,1.74059936]
[1756323011236,0.03392,112070.0,112060.0,1.74259936]
[1756323011636,0.1231363,112070.0,112060.0,1.74259936]
[1756323011939,0.2395563,112070.0,112060.0,1.74223936]
[1756323012242,0.2395563,112070.0,112060.0,0.80313516]
[1756323012439,0.2395563,112070.0,112060.0,1.74211946]
[1756323012740,0.12228,112070.0,112060.0,1.74211946]
[1756323012937,0.2355563,112070.0,112060.0,1.74211946]
[1756323014138,0.14634,112070.0,112060.0,1.74211946]
[1756323014342,0.08762,112070.0,112060.0,1.74211946]
[1756323014535,0.001,112070.0,112060.0,1.99211946]
[1756323014838,0.00034,112070.0,112060.0,1.99211946]
[1756323016341,0.02902,112080.0,112070.0,0.0892124]
[1756323016538,0.02892,112080.0,112070.0,0.90841134]
[1756323016741,0.02416,112090.0,112070.0,1.75793134]
[1756323016931,0.01609,112100.0,112090.0,0.0891963]
[1756323017132,0.02892,112100.0,112090.0,1.39718054]
[1756323017346,0.5954251,112110.0,112100.0,0.0891883]
[1756323017642,0.63083556,112110.0,112100.0,0.52781346]
[1756323018443,0.27003556,112110.0,112100.0,0.52781346]
[1756323018643,0.24448193,112110.0,112100.0,0.52781346]
[1756323018843,0.24448193,112110.0,112100.0,0.43862516]
[1756323019044,0.24448193,112110.0,112100.0,1.28782516]
[1756323019744,0.31491293,112110.0,112100.0,1.37701416]
[1756323019946,0.31491293,112110.0,112100.0,1.37801416]
[1756323023846,0.31491293,112110.0,112100.0,0.090189]
[1756323024044,0.31491293,112110.0,112100.0,0.938989]
[1756323024246,0.31491293,112110.0,112100.0,1.37761416]
[1756323024844,0.3059561,112110.0,112100.0,1.73841416]
[1756323025337,0.2355251,112110.0,112100.0,0.80042516]
[1756323025542,0.2355251,112110.0,112100.0,1.64906516]
[1756323025843,0.2355251,112110.0,112100.0,0.88961486]
[1756323026043,0.2355251,112110.0,112100.0,1.73821486]
[1756323026347,0.2355251,112110.0,112100.0,0.88961486]
[1756323026640,0.2355251,112110.0,112100.0,1.73813486]
[1756323027745,0.2355251,112110.0,112100.0,1.73809486]
[1756323029748,0.5963251,112110.0,112100.0,0.001]
[1756323029947,0.5963251,112110.0,112100.0,0.84924]
[1756323030146,0.5963251,112110.0,112100.0,0.9384293]
[1756323030748,0.5963251,112110.0,112100.0,0.9383893]
[1756323031145,0.5963251,112110.0,112100.0,0.0901893]
[1756323031352,0.5963251,112110.0,112100.0,0.84912]
[1756323032357,0.5963251,112110.0,112100.0,0.9383093]
[1756323032550,1.03495026,112110.0,112100.0,0.9383093]
[1756323033248,0.5963251,112110.0,112100.0,0.9383093]
[1756323033448,1.03495026,112110.0,112100.0,0.9383093]
[1756323033645,1.03495026,112110.0,112100.0,0.84896]
[1756323033947,1.63495026,112110.0,112100.0,0.84888]
[1756323034152,1.66144668,112110.0,112100.0,0.001]
[1756323034353,1.62144668,112110.0,112100.0,0.84888]
[1756323036849,0.0891893,112100.0,112090.0,0.02019908]
[1756323037057,1.33965446,112100.0,112090.0,0.86767908]
[1756323037257,1.02965446,112100.0,112090.0,0.86767908]
[1756323037445,0.2302293,112100.0,112090.0,0.86767908]
[1756323037752,0.2302293,112100.0,112090.0,0.86763908]
[1756323037753,0.91885446,112100.0,112090.0,0.86763908]
[1756323037944,1.27965446,112100.0,112090.0,0.86963908]
[1756323038141,1.27965446,112100.0,112090.0,0.02199908]
[1756323038349,1.27965446,112100.0,112090.0,0.86963908]
[1756323039863,1.62965446,112100.0,112090.0,0.02199908]
[1756323040046,1.65618107,112100.0,112090.0,0.02199908]
[1756323041345,0.0891972,112090.0,112080.0,0.0002]
[1756323041652,0.2302452,112080.0,112070.0,0.02517378]
[1756323041847,1.07620074,112080.0,112070.0,0.73757378]
[1756323042154,1.04967036,112080.0,112070.0,0.73557378]
[1756323042549,1.04667036,112080.0,112070.0,0.73557378]
[1756323042749,1.04567036,112080.0,112070.0,0.73557378]
[1756323043050,1.04567036,112080.0,112070.0,0.86717378]
[1756323043354,1.04567036,112080.0,112070.0,0.87137378]
[1756323044351,0.6070452,112080.0,112070.0,0.87137378]
[1756323044555,1.04567036,112080.0,112070.0,0.87337378]
[1756323044757,1.02567036,112080.0,112070.0,0.87337378]
[1756323046156,0.5870452,112080.0,112070.0,0.87337378]
[1756323046457,1.02567036,112080.0,112070.0,0.02597378]
[1756323046658,0.5870452,112080.0,112070.0,0.87325378]
[1756323047958,1.02567036,112080.0,112070.0,0.02597378]
[1756323048153,1.02567036,112080.0,112070.0,0.87321378]
[1756323048361,0.5870452,112080.0,112070.0,0.87321378]
[1756323048562,1.02567036,112080.0,112070.0,0.87117378]
[1756323049060,1.02567036,112080.0,112070.0,0.02397378]
[1756323049260,1.02567036,112080.0,112070.0,0.87113378]
[1756323049661,1.04567036,112080.0,112070.0,0.87113378]
[1756323049859,1.04567036,112080.0,112070.0,0.87313378]
[1756323050248,1.02567036,112080.0,112070.0,0.87313378]
[1756323050759,1.02567036,112080.0,112070.0,0.02597378]
[1756323050959,1.02567036,112080.0,112070.0,0.87305378]
[1756323051962,1.02567036,112080.0,112070.0,0.02597378]
[1756323052256,1.02567036,112080.0,112070.0,0.87301378]
[1756323053257,0.5870452,112080.0,112070.0,0.87301378]
[1756323053456,1.02567036,112080.0,112070.0,0.87301378]